Cogmind - Beta 14 @@@ ROGUE MODE // 2025.04.29 @ 10:54:20 Player: Florist Result: Destroyed by G-34 Mercenary with Small Laser Performance ------------- Evolutions (0) 0 Regions Visited (1) 200 Robots Destroyed (13) 65 Value Destroyed (348) 348 Prototype IDs (0) 0 Alien Tech Used (0) 0 Bonus (8) 8 TOTAL SCORE: 621 Bonus ------- High Alert Combat Kills 8 Cogmind --------- Core Integrity 0/250 Matter 8/300 Energy 100/100 System Corruption 0% Temperature Cool (7) Movement Flying (115) Ox1 Location -10/Materials Parts ------- > --- POWER (1) -------- (None) > --- PROPULSION (2) --- VTOL Module > --- UTILITY (2) ------ Small Storage Unit > --- WEAPON (2) ------- (None) > --- INVENTORY (8) ---- Light Ion Engine Flight Unit Flight Unit VTOL Module Propulsion Shielding Mini Grenade Launcher Mini Grenade Launcher Peak State ------------ > --- POWER ------------ (None) > --- PROPULSION ------- VTOL Module VTOL Module > --- UTILITY ---------- Small Storage Unit > --- WEAPON ----------- Mini Grenade Launcher Mini Grenade Launcher > --- INVENTORY -------- Light Ion Engine VTOL Module VTOL Module Light Assault Rifle Mini Grenade Launcher Mini Grenade Launcher [Rating: 10] Favorites ----------- Power None Propulsion Light Treads Treads Light Treads Flight Unit VTOL Module Utility Small Storage Unit Storage Small Storage Unit Weapon Mini Grenade Launcher Ballistic Gun Light Assault Rifle Launcher Mini Grenade Launcher Build | -11 -10 ------- Run | Yrd Mat Slots Evolved . | . . Power . | . . Propulsion . | . . Utility . | . . Weapon . | . . Parts Attached 11 | 6 5 Power . | . . Engine . | . . Core . | . . Reactor . | . . Propulsion 5 | 2 3 Treads 2 | 2 . Leg . | . . Wheel . | . . Hover . | . . Flight 3 | . 3 Utility 1 | 1 . Device . | . . Storage 1 | 1 . Processor . | . . Hackware . | . . Protection . | . . Artifact . | . . Weapon 5 | 3 2 Energy Gun . | . . Energy Cannon . | . . Ballistic Gun 3 | 3 . Ballistic Cannon . | . . Launcher 2 | . 2 Special Weapon . | . . Impact Weapon . | . . Slashing Weapon . | . . Piercing Weapon . | . . Special Melee Weapon . | . . Unidentified Prototypes . | . . Parts Lost 2 | . 2 Power . | . . Propulsion 2 | . 2 Utility . | . . Weapon . | . . Highest Loss Streak 2 | . 2 To Critical Strikes . | . . Average Slot Usage (%) 64 | . 64 Treads 7 | . 7 Flight 18 | . 18 Storage 14 | . 14 Ballistic Gun 8 | . 8 Launcher 16 | . 16 Peak Build Rating 10 | 5 10 Average Rating 6 | 4 7 On Entrance 2 | . 5 Naked Turns . | . . Heaviest Build 8 | 8 8 Greatest Support 40 | 40 40 Greatest Overweight (x) 1 | . 1 Average Overweight (x) . | . . Largest Inventory Capacity 8 | 8 8 Average Capacity 7 | 7 8 Most Carried 8 | 4 8 Average Carried 5 | 2 6 Final Capacity 8 | 8 8 Final Carried 7 | 4 7 Class Distribution -------------------- 56% | Mutant 43% | Sprinter Dominant Class ---------------- Sprinter | -10/Materials Resources | -11 -10 ----------- Run | Yrd Mat Matter Collected 212 | 188 24 Remotely . | . . Salvage Created 196 | . 196 Parts 21 | . 21 Haulers Intercepted . | . . Recyclers Shooed . | . . Parts Field Recycled . | . . Retrieved Matter . | . . Parts Self-Destructed . | . . Prevented . | . . Kills | -11 -10 ------- Run | Yrd Mat Combat Hostiles Destroyed 7 | . 7 Guns 2 | . 2 AOE 5 | . 5 Classes Destroyed 4 | . 4 Worker 2 | . 2 Builder 2 | . 2 Watcher 2 | . 2 Grunt 7 | . 7 Best Kill Streak 8 | . 8 Combat Bots Only 3 | . 3 Max Kills in Single Turn 3 | . 3 Gunslinging . | . . Exploded 2 | . 2 Melee . | . . Uniques/NPCs Destroyed . | . . Combat | -11 -10 -------- Run | Yrd Mat Hostile Shots Fired 47 | . 47 Missed 13 | . 13 Damage Taken 531 | . 531 Core 258 | . 258 Absorbed by Shields . | . . Core Remaining (%) 100 | 100 . Volleys Fired 18 | . 18 Largest 2 | . 2 Hottest 60 | . 60 Shots Fired 30 | . 30 Gun 12 | . 12 Cannon . | . . Launcher 18 | . 18 Special . | . . Kinetic 12 | . 12 Thermal . | . . Explosive 18 | . 18 Electromagnetic . | . . Robot Hit Streak 6 | . 6 Robot Miss Streak 2 | . 2 Penetration Max . | . . Secondary Targets . | . . Shots Hit Robots 15 | . 15 Core Hits 23 | . 23 Critical Kills . | . . Critical Parts Destroyed . | . . Critical Strikes . | . . Melee Attacks . | . . Impact . | . . Slashing . | . . Piercing . | . . Sneak Attacks . | . . Combat Hostiles . | . . Follow-up Attacks . | . . Damage Inflicted 1071 | . 1071 Guns 92 | . 92 Cannons . | . . Explosions 979 | . 979 Melee . | . . Ramming . | . . Kinetic 92 | . 92 Thermal . | . . Explosive 979 | . 979 Electromagnetic . | . . Impact . | . . Slashing . | . . Piercing . | . . Highest Corruption . | . . Average Corruption . | . . Corruption Purged . | . . Corruption Blocked . | . . Overload Shots . | . . Overflow Damage 13 | . 13 Projectiles . | . . Explosions 13 | . 13 Melee . | . . Knockbacks . | . . Impact . | . . Kinetic . | . . Secondary . | . . Self-Inflicted Damage 150 | . 150 Shots 3 | . 3 Rammed . | . . Targets Rammed . | . . Kicked . | . . Crushed . | . . Highest Temperature 16 | . 16 Average Temperature 6 | . 6 Received Heat Transfer 150 | . 150 Siege Activations . | . . Robots Corrupted . | . . Combat Hostiles . | . . Parts Fried . | . . Impact Corruptions . | . . Robots Melted . | . . Combat Hostiles . | . . Parts Melted . | . . Heat Transferred . | . . Parts Sabotaged . | . . Parts Stolen . | . . Parts Stripped . | . . Power Chain Reactions . | . . Alert | -11 -10 ------- Run | Yrd Mat Peak Influence 442 | . 442 Initial . | . . Average 147 | . 217 Maximum Alert Level 2 | . 2 Low Security (%) 65 | 100 49 Level 1 20 | . 29 Level 2 13 | . 20 Level 3 . | . . Level 4 . | . . Level 5 . | . . High Security . | . . Max Security . | . . Squads Dispatched 1 | . 1 Investigation 1 | . 1 Extermination . | . . Reinforcement . | . . Assault . | . . Garrison . | . . Intercept . | . . Searches Triggered . | . . Construction Impeded . | . . Haulers Reinforced . | . . Active Scanning Responses . | . . Cargo Convoy Interrupts . | . . Stealth | -11 -10 --------- Run | Yrd Mat Distress Signals . | . . Communications Jammed . | . . Distress Signals . | . . Times Spotted 15 | . 15 Peak Tracking Total 5 | . 5 Tactical Retreats 1 | . 1 Traps | -11 -10 ------- Run | Yrd Mat Traps Triggered 1 | . 1 Indirectly . | . . Trap Hack Attempts . | . . Triggered . | . . Disarmed . | . . Reprogrammed . | . . Reused . | . . Traps Extracted . | . . Installed . | . . Triggered . | . . Machines | -11 -10 ---------- Run | Yrd Mat Machines Disabled 4 | . 4 Max in Single Turn 2 | . 2 Machines Repaired . | . . Machines Dismantled . | . . Machines Sabotaged . | . . Overloaded Fab Kills . | . . Hacking | -11 -10 --------- Run | Yrd Mat Machines Accessed 1 | . 1 Terminals 1 | . 1 Fabricators . | . . Repair Stations . | . . Recycling Units . | . . Scanalyzers . | . . Garrison Access . | . . Total Hacks 2 | . 2 Successful 1 | . 1 Failed 1 | . 1 Catastrophic . | . . Database Lockouts . | . . Manual 2 | . 2 Terminals 2 | . 2 Fabricators . | . . Repair Stations . | . . Recycling Units . | . . Scanalyzers . | . . Garrison Access . | . . Terminal Hacks . | . . Fabricator Hacks . | . . Repair Station Hacks . | . . Recycling Unit Hacks . | . . Scanalyzer . | . . Garrison Access Hacks . | . . Unauthorized Hacks 1 | . 1 Terminals 1 | . 1 Botnet 1 | . 1 Fabricators . | . . Repair Stations . | . . Recycling Units . | . . Scanalyzers . | . . Garrison Access . | . . Data Cores Recovered . | . . Used . | . . Hacking Detections 1 | . 1 Full Trace Events . | . . Feedback Events . | . . Feedback Blocked . | . . Robot Schematics Acquired . | . . Robots Built . | . . Authchips . | . . Time . | . . Total Robot Build Rating . | . . Part Schematics Acquired . | . . Parts Built . | . . Authchips . | . . Time . | . . Total Part Build Rating . | . . Parts Repaired . | . . Time . | . . Parts Recycled . | . . Recycled Matter . | . . Retrieved Matter . | . . Retrieved Components . | . . Parts Scanalyzed . | . . Part Schematics Acquired . | . . Parts Damaged . | . . Bothacking | -11 -10 ------------ Run | Yrd Mat Used RIF Installer . | . . Robots Hacked . | . . Non-combat . | . . Combat . | . . Robot Hacks Applied . | . . Relay Couplers Released . | . . Fabnet Peak Effective % . | . . Robots Rewired . | . . Allies Hacked . | . . Hacks Repelled . | . . Allies | -11 -10 -------- Run | Yrd Mat Total Allies . | . . Largest Group . | . . Highest-Rated Group . | . . Highest-Rated Ally . | . . Total Orders . | . . Ally Attacks . | . . Total Damage . | . . Kills . | . . Allies Corrupted . | . . Allies Melted . | . . Intel | -11 -10 ------- Run | Yrd Mat Robot Analysis Total . | . . Derelict Logs Recovered . | . . Drone Launches . | . . Drone Recoveries . | . . Exploration | -11 -10 ------------- Run | Yrd Mat Turns Passed 291 | 94 197 Spaces Moved 308 | 53 255 Core 5 | 5 . Treads 68 | 48 20 Legs . | . . Wheels . | . . Hover . | . . Flight 235 | . 235 Fastest Speed 32 | 50 32 Average Speed 65 | 149 47 Slowest Speed 160 | 160 160 Overloaded Moves . | . . Propulsion Burnouts . | . . Robots Hopped . | . . Cave-ins Triggered . | . . Exploration Rate (%) 24 | 4 44 Regions Visited 1 Branch Regions . Pre-discovered Areas . | . . Known Exits Taken . | . . Unknown Exits Taken 1 | 1 . Scrap Searched . | . . Spaces Dug . | . . Terrain Destroyed 111 | . 111 Melee . | . . Projectile . | . . AOE 111 | . 111 Terrain Rammed . | . . Walls Destroyed . | . . Machines Disabled . | . . Actions | -11 -10 --------- Run | Yrd Mat Total 374 | 67 307 Wait 9 | . 9 Move 307 | 52 255 Hop . | . . Pick Up 20 | 9 11 Fast Attach . | . . Attach 10 | 5 5 Detach . | . . Swap 1 | 1 . Drop 9 | . 9 Fire 18 | . 18 Melee . | . . Ram . | . . Kick . | . . Crush . | . . Escape Stasis . | . . Rewire . | . . Trap . | . . Miscellaneous . | . . Route ------- -11/Scrapyard -10/Materials (discovered 1 exit: [*Mat]) History --------- Turn | Location | Event 32 | -11/Scrapyard | Discovered new exit (range 15) 95 | -11/Scrapyard | Entered Materials 245 | -10/Materials | Core integrity fell below 50% 246 | -10/Materials | Discovered new exit (range 11) 280 | -10/Materials | Core integrity fell below 20% 292 | -10/Materials | Destroyed by G-34 Mercenary with Small Laser Last Messages --------------- 00246_ The unstable cave ceiling collapses. 00246_ G-34 Mercenary destroyed. 00246_ EXIT=FOUND 00248_ U-05 Engineer lays Concrete. 00249_ The unstable cave ceiling collapses. 00249_ U-05 Engineer lays Concrete. 00250_ U-05 Engineer builds a Wall. 00251_ The unstable cave ceiling collapses. 00252_ G-34 Mercenary destroyed. 00253_ The unstable cave ceiling collapses. 00253_ K-01 Serf collects debris. 00254_ U-05 Engineer lays Concrete. 00256_ The unstable cave ceiling collapses. 00256_ K-01 Serf collects debris. 00256_ U-05 Engineer builds a Wall. 00257_ Acquired 1 matter. 00271_ VTOL Module destroyed. 00271_ Destroyed VTOL Module. 00273_ Dropped Mni. Grenade Launcher. 00292_ U-05 Engineer lays Concrete. Map ----- +----------------------------------------------------+ | ???????#T #[[ =[=## ######""""" ########## | | ???????## # == ## # " # | | ????????# # #####+### " # """ | | ????????# + / " "T """ | | ????????# ## # " """ """ | | ????????# ## """ | | ????????# """" ## ! " | | ?#+###### "" ## " | | %= """ ## ""= | | !%! """ #####=" # # ## | | ##+####### """ ####### = * ## | | ?????????#!!! ""< = | | ?????????#!!! << | | ?????????#!! ########### # # | | ?????????# "#????#### # | | ?????????# "#??????### " | | ?????????+ "#??????# ## " | | ?????????# T#??????# # ##[ " | | ?????????####### g "#??????# ## " | | ???????????????#a "#??????# ## " | | ???????????????# "#?????##! ## | | ???????????????# [[[ #??????# ## | | ???????????????# [[ ############+# ##### | | ????####???????# [[ w u # | | ???## ##?????# < # # | | " # ]####### @ # # "" | | ] s ss ###+######+#### #### # "" | | # ############## #??! =?# #??# # "" | | ???## # ##????????????# #?# # #??# + | | ????#?##??????????????# #?# """ # #??# # "" | | ??????????????????????# #?# """ # #??# # "" | | ??????????????????????# #?# """ # #??# # "" | | ??????????????????????# #?# # ??# # | | ??????????????????????# #?######## ""?# # | | ??????????????????????#####????????# ##?# ##### | | ???????????????????????????????????# #??# ##### | | ???????????????????????????????????+ #??# # | | ???????????????????????????????????# #??# + " | | ???????????????????????????????????# #??# # """ | | ???????????????????????????????????? #??# # "" | | ???????????????????????????????????? #??# # """ | | ???????????????????????????????????? ???# # "" | | ??????????????????????????????????????????# + """ | | ??????????????????????????????????????????# # """ | | ??????????????????????????????????????????# # """ | | ??????????????????????????????????????????# # " | | ??????????????????????????????????????????# # | | ??????????????????????????????????????????# # | | ??????????????????????????????????????????# # | | ??????????????????????????????????????????# ##### | +----------------------------------------------------+ Best States ------------- Heat Dissipation 25 Energy Generation 5 Energy Capacity 100 Matter Stores 228 Matter Capacity 300 Sight Range 16 Terrain Scan Density 10 Evasion (%) 63 Recoil Reduction 2 Item Schematics ----------------- None Robot Schematics ------------------ None Fabricated ------------ Nothing Alien Tech Used ----------------- None Achievements -------------- None Challenges ------------ None Game ------ Seed RemoteTowerMembrane Manual? 0 Play Time 00:04:25 Cumulative 62.2 hours Start 2025.04.29 @ 10:49:45 End 2025.04.29 @ 10:54:20 Sessions 1 Manual Loads 0 Difficulty Rogue Special Mode None Game No. 78 Rogue 78 Adventurer 0 Explorer 0 Win Type - Total 0 Types 0/0/0/0/0/0/0/0/0 Lore% 14 Gallery% 43 Achievement% 38 Wizard Run 0 Options --------- Layout 1 ASCII 0 Keyboard 0 Movement Mouse Keybinds 0 Fullscreen 1 Font 32/SmallcapsGlow Map View 77x35 Zoom Use 0% Tactical HUD 1 Map Filters NONE Filters NONE Steam 1 RUN: 69d117cf-0a81-473f-96b1-972cfe09a5de